fUSD/lending_fUSD_20250629
["ID","MTS","AMOUNT","RATE_DAILY","PERIOD"]
[368447033,1751181063055,-490.0,0.00028465,3]
[368447034,1751181063064,-23167.41,0.00028465,3]
[368447035,1751181063074,-2515.28,0.00028465,3]
[368447036,1751181063083,-2108.69,0.00028465,3]
[368447037,1751181063092,-1108.39,0.00028465,3]
[368447038,1751181063102,-1355.67,0.00028465,3]
[368447039,1751181063111,-1933.66,0.00028465,3]
[368447040,1751181063122,-570.09,0.00028465,3]
[368447041,1751181063131,-1634.26,0.00028465,3]
[368447042,1751181063140,-3352.06,0.00028465,3]
[368447043,1751181063149,-997.18,0.00028465,3]
[368447044,1751181063159,-511.46,0.00028465,3]
[368447045,1751181063169,-1743.3,0.00028465,3]
[368447046,1751181063179,-880.29,0.00028465,3]
[368447047,1751181063189,-490.0,0.00028465,3]
[368447048,1751181063198,-2397.17,0.00028465,3]
[368447049,1751181063208,-2562.29,0.00028465,3]
[368447050,1751181063217,-521.73,0.00028465,3]
[368447051,1751181063226,-1949.04,0.00028465,3]
[368447052,1751181063236,-2217.26,0.00028465,3]
[368447053,1751181063245,-3245.85,0.00028465,3]
[368447054,1751181063256,-2819.9,0.00028465,3]
[368447055,1751181063266,-2825.64,0.00028465,3]
[368447056,1751181063276,-2118.33,0.00028465,3]
[368447057,1751181063285,-150.0,0.00028476,2]
[368447058,1751181063295,-490.0,0.00028477,3]
[368447059,1751181063304,-490.0,0.00028477,3]
[368447060,1751181063313,-490.0,0.00028477,3]
[368447061,1751181063323,-516.31,0.00028477,3]
[368447062,1751181063333,-490.0,0.00028477,3]
[368447063,1751181063343,-490.0,0.00028477,3]
[368447064,1751181063351,-490.0,0.00028477,3]
[368447065,1751181063361,-490.0,0.00028477,3]
[368447066,1751181063371,-490.0,0.00028477,3]
[368447067,1751181063379,-490.0,0.00028477,3]
[368447068,1751181063389,-490.0,0.00028477,3]
[368447069,1751181063398,-763.88,0.00028477,3]
[368447070,1751181063408,-257.97836632,0.00028477,3]
[368447071,1751181063417,-5133.23,0.00028477,3]
[368447072,1751181063427,-1269.82,0.00028477,3]
[368447073,1751181063436,-3715.7,0.00028477,3]
[368447074,1751181063446,-2452.96,0.00028477,3]
[368447075,1751181063455,-3160.68,0.00028477,3]
[368447076,1751181063464,-7350.11,0.00028477,3]
[368447077,1751181063474,-490.0,0.00028477,3]
[368447078,1751181063483,-1364.97,0.00028477,3]
[368447079,1751181063492,-3409.97,0.00028477,3]
[368447080,1751181063501,-490.0,0.00028477,3]
[368447081,1751181063511,-2362.35,0.00028477,3]
[368447082,1751181063520,-1972.38,0.00028477,3]
[368447083,1751181063530,-2497.59,0.00028477,3]
[368447084,1751181063539,-8045.04,0.00028477,3]
[368447085,1751181063548,-12001.75,0.00028477,3]
[368447086,1751181063558,-2929.0,0.00028477,3]
[368447087,1751181063567,-3142.55,0.00028477,3]
[368447088,1751181063577,-2510.7,0.00028477,3]
[368447089,1751181063586,-490.0,0.00028477,3]
[368447090,1751181063595,-2398.49,0.00028477,3]
[368447091,1751181063604,-490.0,0.00028477,3]
[368447092,1751181063613,-9605.05,0.00028477,3]
[368447093,1751181063623,-1080.99,0.00028477,3]
[368447094,1751181063632,-4328.81,0.00028477,3]
[368447095,1751181063642,-6177.47,0.00028477,3]
[368447096,1751181063651,-2536.53,0.00028477,3]
[368447097,1751181063660,-2809.45,0.00028477,3]
[368447098,1751181063670,-2344.91,0.00028477,3]
[368447099,1751181063679,-2761.66,0.00028477,3]
[368447100,1751181063688,-3130.55,0.00028477,3]
[368447101,1751181063697,-4148.74,0.00028477,3]
[368447102,1751181063706,-3820.56583955,0.00028482,2]
[368447103,1751181063715,-1000.0,0.0002849,120]
[368447104,1751181063725,-327.62092147,0.00028529,2]
[368447105,1751181063734,-500.0,0.00028529,2]
[368447106,1751181063743,-850.0,0.00028529,2]
[368447107,1751181063753,-500.0,0.00028529,2]
[368447108,1751181063762,-500.0,0.00028529,2]
[368447109,1751181063771,-7706.6945451,0.00028531,2]
[368447110,1751181063781,-14347.6745791,0.00028531,2]
[368447111,1751181063791,-63791.7614549,0.00028542,2]
[368447112,1751181063800,-1513.57,0.0002855,3]
[368447113,1751181063810,-490.0,0.0002855,3]
[368447114,1751181063819,-490.0,0.0002855,3]
[368447115,1751181063829,-490.0,0.0002855,3]
[368447116,1751181063838,-490.0,0.0002855,3]
[368447117,1751181063847,-490.0,0.0002855,3]
[368447118,1751181063857,-490.0,0.0002855,3]
[368447119,1751181063867,-490.0,0.0002855,3]
[368447120,1751181063876,-490.0,0.0002855,3]
[368447121,1751181063885,-490.0,0.0002855,3]
[368447122,1751181063894,-790.85,0.0002855,3]
[368447123,1751181063904,-724.95,0.0002855,3]
[368447124,1751181063913,-710.94,0.0002855,3]
[368447125,1751181063923,-5336.78,0.0002855,3]
[368447126,1751181063932,-2154.93,0.0002855,3]
[368447127,1751181063942,-642.41,0.0002855,3]
[368447128,1751181063951,-6046.69,0.0002855,3]
[368447129,1751181063962,-490.0,0.0002855,3]
[368447130,1751181063971,-2760.67,0.0002855,3]
[368447131,1751181063981,-511.10871037,0.0002855,3]
[368447132,1751181063991,-725.45,0.0002855,3]
[368447133,1751181064000,-2941.14,0.0002855,3]
[368447134,1751181064009,-11329.43,0.0002855,3]
[368447135,1751181064019,-560.26,0.0002855,3]
[368447136,1751181064029,-394.9591893,0.0002855,3]
[368447137,1751181064038,-2672.06,0.0002855,3]
[368447138,1751181064048,-490.0,0.0002855,3]
[368447139,1751181064058,-2094.49,0.0002855,3]
[368447140,1751181064067,-556.19765921,0.0002855,3]
[368447141,1751181064077,-1701.04,0.0002855,3]
[368447142,1751181064086,-1947.43,0.0002855,3]
[368447143,1751181064096,-2546.98,0.0002855,3]
[368447144,1751181064106,-490.0,0.0002855,3]
[368447145,1751181064115,-3358.89,0.0002855,3]
[368447146,1751181064124,-490.0,0.0002855,3]
[368447147,1751181064133,-12892.91,0.0002855,3]
[368447148,1751181064144,-714.98,0.0002855,3]
[368447149,1751181064153,-2924.24,0.0002855,3]
[368447150,1751181064162,-2959.67,0.0002855,3]
[368447151,1751181064171,-1484.33,0.0002855,3]
[368447152,1751181064181,-3214.08,0.0002855,3]
[368447153,1751181064191,-2679.23,0.0002855,3]
[368447154,1751181064200,-5243.94,0.0002855,3]
[368447155,1751181064209,-490.0,0.0002855,3]
[368447156,1751181064219,-14928.02,0.0002855,3]
[368447157,1751181064228,-490.0,0.0002855,3]
[368447158,1751181064238,-1157.03,0.0002855,3]
[368447159,1751181064247,-1734.56,0.0002855,3]
[368447160,1751181064257,-150.0,0.0002855,2]
[368447161,1751181064267,-5479.42,0.0002855,3]
[368447162,1751181064276,-3307.9,0.0002855,3]
[368447163,1751181064286,-490.0,0.00028551,3]
[368447164,1751181064295,-418.92845179,0.00028551,3]
[368447165,1751181064305,-490.0,0.00028551,3]
[368447166,1751181064315,-490.0,0.00028551,3]
[368447167,1751181064324,-750.37,0.00028551,3]
[368447168,1751181064333,-490.0,0.00028551,3]
[368447169,1751181064343,-490.0,0.00028551,3]
[368447170,1751181064354,-490.0,0.00028551,3]
[368447171,1751181064364,-490.0,0.00028551,3]
[368447172,1751181064375,-571.93,0.00028551,3]
[368447173,1751181064384,-704.67,0.00028551,3]
[368447174,1751181064395,-490.0,0.00028551,3]
[368447175,1751181064404,-1253.64,0.00028551,3]
[368447176,1751181064414,-490.0,0.00028551,3]
[368447177,1751181064423,-1153.24,0.00028551,3]
[368447178,1751181064434,-490.0,0.00028551,3]
[368447179,1751181064444,-896.43,0.00028551,3]
[368447180,1751181064453,-220.91892519,0.00028551,3]
[368447181,1751181064463,-490.0,0.00028551,3]
[368447182,1751181064472,-490.0,0.00028551,3]
[368447183,1751181064481,-555.15,0.00028551,3]
[368447184,1751181064491,-490.0,0.00028551,3]
[368447185,1751181064500,-490.0,0.00028551,3]
[368447186,1751181064510,-490.0,0.00028551,3]
[368447187,1751181064519,-1094.33,0.00028551,3]
[368447188,1751181064529,-490.0,0.00028551,3]
[368447189,1751181064538,-2180.92,0.00028551,3]
[368447190,1751181064548,-490.0,0.00028551,3]
[368447191,1751181064557,-490.0,0.00028551,3]
[368447192,1751181064567,-490.0,0.00028551,3]
[368447193,1751181064576,-653.56,0.00028551,3]
[368447194,1751181064585,-490.0,0.00028551,3]
[368447195,1751181064594,-521.25,0.00028551,3]
[368447196,1751181064604,-631.87,0.00028551,3]
[368447197,1751181064613,-490.0,0.00028551,3]
[368447198,1751181064622,-758.2,0.00028551,3]
[368447199,1751181064632,-747.42,0.00028551,3]
[368447200,1751181064641,-490.0,0.00028551,3]
[368447201,1751181064650,-1528.85,0.00028551,3]
[368447202,1751181064660,-490.0,0.00028551,3]
[368447203,1751181064669,-574.09991409,0.00028551,3]
[368447204,1751181064678,-490.0,0.00028551,3]
[368447205,1751181064689,-2020.13,0.00028551,3]
[368447206,1751181064699,-490.0,0.00028551,3]
[368447207,1751181064708,-937.87,0.00028551,3]
[368447208,1751181064718,-397.97183058,0.00028551,3]
[368447209,1751181064728,-2521.9,0.00028551,3]
[368447210,1751181064737,-490.0,0.00028551,3]
[368447211,1751181064748,-688.19,0.00028551,3]
[368447212,1751181064757,-490.0,0.00028551,3]
[368447213,1751181064767,-659.51,0.00028551,3]
[368447214,1751181064777,-1494.88,0.00028551,3]
[368447215,1751181064786,-490.0,0.00028551,3]
[368447216,1751181064796,-490.0,0.00028551,3]
[368447217,1751181064806,-490.0,0.00028551,3]
[368447218,1751181064817,-918.44,0.00028551,3]
[368447219,1751181064826,-1245.98,0.00028551,3]
[368447220,1751181064837,-490.0,0.00028551,3]
[368447221,1751181064847,-490.0,0.00028551,3]
[368447222,1751181064857,-2130.24,0.00028551,3]
[368447223,1751181064867,-425.62052598,0.00028551,3]
[368447224,1751181064877,-490.0,0.00028551,3]
[368447225,1751181064887,-490.0,0.00028551,3]
[368447226,1751181064897,-1824.71,0.00028551,3]
[368447227,1751181064907,-490.0,0.00028551,3]
[368447228,1751181064917,-490.0,0.00028551,3]
[368447229,1751181064927,-819.07,0.00028551,3]
[368447230,1751181064936,-490.0,0.00028551,3]
[368447231,1751181064946,-539.39,0.00028551,3]
[368447232,1751181064956,-548.39,0.00028551,3]
[368447233,1751181064966,-2061.87,0.00028551,3]
[368447234,1751181064976,-490.0,0.00028551,3]
[368447235,1751181064986,-490.0,0.00028551,3]
[368447236,1751181064996,-2634.572186,0.00028551,3]
[368447237,1751181065005,-490.0,0.00028551,3]
[368447238,1751181065015,-490.0,0.00028551,3]
[368447239,1751181065025,-490.0,0.00028551,3]
[368447240,1751181065035,-151.887036,0.00028551,3]
[368447241,1751181065045,-634.04616981,0.00028551,3]
[368447242,1751181065054,-441.285948,0.00028551,3]
[368447243,1751181065064,-1220.64,0.00028551,3]
[368447244,1751181065074,-490.0,0.00028551,3]
[368447245,1751181065083,-1533.93,0.00028551,3]
[368447246,1751181065092,-816.39,0.00028551,3]
[368447247,1751181065102,-727.54,0.00028551,3]
[368447248,1751181065112,-3529.094479,0.00028551,3]
[368447249,1751181065122,-725.22,0.00028551,3]
[368447250,1751181065132,-490.0,0.00028551,3]
[368447251,1751181065141,-503.01354813,0.00028551,3]
[368447252,1751181065151,-537.42,0.00028551,3]
[368447253,1751181065162,-490.0,0.00028551,3]
[368447254,1751181065173,-1640.41,0.00028551,3]
[368447255,1751181065184,-520.0,0.00028551,3]
[368447256,1751181065195,-3851.84049,0.00028551,3]
[368447257,1751181065206,-490.0,0.00028551,3]
[368447258,1751181065217,-490.0,0.00028551,3]
[368447259,1751181065227,-490.0,0.00028551,3]
[368447260,1751181065237,-936.2,0.00028551,3]
[368447261,1751181065247,-490.0,0.00028551,3]
[368447262,1751181065257,-490.0,0.00028551,3]
[368447263,1751181065267,-1388.66,0.00028551,3]
[368447264,1751181065278,-578.37,0.00028551,3]
[368447265,1751181065289,-490.0,0.00028551,3]
[368447266,1751181065299,-490.0,0.00028551,3]
[368447267,1751181065310,-490.0,0.00028551,3]
[368447268,1751181065320,-490.0,0.00028551,3]
[368447269,1751181065330,-1588.38,0.00028551,3]
[368447270,1751181065340,-490.0,0.00028551,3]
[368447271,1751181065350,-490.0,0.00028551,3]
[368447272,1751181065361,-490.0,0.00028551,3]
[368447273,1751181065372,-490.0,0.00028551,3]
[368447274,1751181065382,-1544.75,0.00028551,3]
[368447275,1751181065392,-490.0,0.00028551,3]
[368447276,1751181065402,-490.0,0.00028551,3]
[368447277,1751181065411,-490.0,0.00028551,3]
[368447278,1751181065421,-1423.04,0.00028551,3]
[368447279,1751181065431,-490.0,0.00028551,3]
[368447280,1751181065441,-490.0,0.00028551,3]
[368447281,1751181065451,-490.0,0.00028551,3]
[368447282,1751181065461,-496.76341023,0.00028551,3]
[368447283,1751181065470,-490.0,0.00028551,3]
[368447284,1751181065480,-490.0,0.00028551,3]
[368447285,1751181065489,-490.0,0.00028551,3]
[368447286,1751181065499,-490.0,0.00028551,3]
[368447287,1751181065509,-490.0,0.00028551,3]
[368447288,1751181065519,-490.0,0.00028551,3]
[368447289,1751181065529,-619.04,0.00028551,3]
[368447290,1751181065538,-490.0,0.00028551,3]
[368447291,1751181065548,-490.0,0.00028551,3]
[368447292,1751181065558,-490.0,0.00028551,3]
[368447293,1751181065567,-490.0,0.00028551,3]
[368447294,1751181065577,-490.0,0.00028551,3]
[368447295,1751181065587,-654.86,0.00028551,3]
[368447296,1751181065597,-490.0,0.00028551,3]
[368447297,1751181065607,-490.0,0.00028551,3]
[368447298,1751181065617,-664.59,0.00028551,3]
[368447299,1751181065627,-490.0,0.00028551,3]
[368447300,1751181065637,-490.0,0.00028551,3]
[368447301,1751181065647,-490.0,0.00028551,3]
[368447302,1751181065659,-490.0,0.00028551,3]
[368447303,1751181065669,-490.0,0.00028551,3]
[368447304,1751181065679,-490.0,0.00028551,3]
[368447305,1751181065688,-490.0,0.00028551,3]
[368447306,1751181065698,-839.16,0.00028551,3]
[368447307,1751181065708,-426.19637601,0.00028551,3]
[368447308,1751181065718,-490.0,0.00028551,3]
[368447309,1751181065728,-490.0,0.00028551,3]
[368447310,1751181065738,-490.0,0.00028551,3]
[368447311,1751181065747,-490.0,0.00028551,3]
[368447312,1751181065757,-490.0,0.00028551,3]
[368447313,1751181065767,-724.74,0.00028551,3]
[368447314,1751181065777,-1070.97,0.00028551,3]
[368447315,1751181065786,-490.0,0.00028551,3]
[368447316,1751181065796,-490.0,0.00028551,3]
[368447317,1751181065806,-490.0,0.00028551,3]
[368447318,1751181065816,-700.11,0.00028551,3]
[368447319,1751181065826,-3031.19,0.00028551,3]
[368447320,1751181065836,-490.0,0.00028551,3]
[368447321,1751181065846,-490.0,0.00028551,3]
[368447322,1751181065856,-3018.42,0.00028551,3]
[368447323,1751181065866,-490.0,0.00028551,3]
[368447324,1751181065876,-1887.96,0.00028551,3]
[368447325,1751181065886,-490.0,0.00028551,3]
[368447326,1751181065896,-490.0,0.00028551,3]
[368447327,1751181065906,-490.0,0.00028551,3]
[368447328,1751181065917,-521.61,0.00028551,3]
[368447329,1751181065926,-2164.49,0.00028551,3]
[368447330,1751181065936,-490.0,0.00028551,3]
[368447331,1751181065946,-490.0,0.00028551,3]
[368447332,1751181065956,-490.0,0.00028551,3]
[368447333,1751181065965,-490.0,0.00028551,3]
[368447334,1751181065976,-2793.81,0.00028551,3]
[368447335,1751181065987,-490.0,0.00028551,3]
[368447336,1751181065997,-490.0,0.00028551,3]
[368447337,1751181066007,-490.0,0.00028551,3]
[368447338,1751181066018,-490.0,0.00028551,3]
[368447339,1751181066030,-490.0,0.00028551,3]
[368447340,1751181066040,-1102.9,0.00028551,3]
[368447341,1751181066050,-542.89523929,0.00028551,3]
[368447342,1751181066060,-1020.61,0.00028551,3]
[368447343,1751181066070,-490.0,0.00028551,3]
[368447344,1751181066079,-490.0,0.00028551,3]
[368447345,1751181066089,-547.03,0.00028551,3]
[368447346,1751181066100,-490.0,0.00028551,3]
[368447347,1751181066111,-1495.57,0.00028551,3]
[368447348,1751181066122,-4316.74,0.00028551,3]
[368447349,1751181066132,-490.0,0.00028551,3]
[368447350,1751181066142,-490.0,0.00028551,3]
[368447351,1751181066153,-2192.05,0.00028551,3]
[368447352,1751181066163,-623.46,0.00028551,3]
[368447353,1751181066173,-490.0,0.00028551,3]
[368447354,1751181066183,-490.0,0.00028551,3]
[368447355,1751181066192,-3176.46,0.00028551,3]
[368447356,1751181066202,-2370.99,0.00028551,3]
[368447357,1751181066212,-551.2,0.00028551,3]
[368447358,1751181066223,-490.0,0.00028551,3]
[368447359,1751181066233,-490.0,0.00028551,3]
[368447360,1751181066243,-710.18,0.00028551,3]
[368447361,1751181066252,-4889.56,0.00028551,3]
[368447362,1751181066262,-1001.86,0.00028551,3]
[368447363,1751181066273,-490.0,0.00028551,3]
[368447364,1751181066283,-490.0,0.00028551,3]
[368447365,1751181066293,-4783.71,0.00028551,3]
[368447366,1751181066302,-490.0,0.00028551,3]
[368447367,1751181066313,-490.0,0.00028551,3]
[368447368,1751181066323,-2327.17,0.00028551,3]
[368447369,1751181066333,-490.0,0.00028551,3]
[368447370,1751181066342,-1207.77,0.00028551,3]
[368447371,1751181066353,-2329.6,0.00028551,3]
[368447372,1751181066365,-490.0,0.00028551,3]
[368447373,1751181066375,-3126.47,0.00028551,3]
[368447374,1751181066384,-1813.07,0.00028551,3]
[368447375,1751181066395,-490.0,0.00028551,3]
[368447376,1751181066405,-1724.24,0.00028551,3]
[368447377,1751181066415,-2630.42,0.00028551,3]
[368447378,1751181066424,-490.0,0.00028551,3]
[368447379,1751181066435,-490.0,0.00028551,3]
[368447380,1751181066445,-490.0,0.00028551,3]
[368447381,1751181066455,-490.0,0.00028551,3]
[368447382,1751181066465,-490.0,0.00028551,3]
[368447383,1751181066474,-702.81,0.00028551,3]
[368447384,1751181066484,-705.02,0.00028551,3]
[368447385,1751181066494,-4184.39,0.00028551,3]
[368447386,1751181066505,-490.0,0.00028551,3]
[368447387,1751181066515,-490.0,0.00028551,3]
[368447388,1751181066528,-490.0,0.00028551,3]
[368447389,1751181066538,-4515.26,0.00028551,3]
[368447390,1751181066548,-490.0,0.00028551,3]
[368447391,1751181066558,-490.0,0.00028551,3]
[368447392,1751181066568,-490.0,0.00028551,3]
[368447393,1751181066578,-490.0,0.00028551,3]
[368447394,1751181066588,-490.0,0.00028551,3]
[368447395,1751181066599,-2193.92,0.00028551,3]
[368447396,1751181066609,-5901.61,0.00028551,3]
[368447397,1751181066619,-805.14,0.00028551,3]
[368447398,1751181066629,-490.0,0.00028551,3]
[368447399,1751181066639,-490.0,0.00028551,3]
[368447400,1751181066650,-534.18,0.00028551,3]
[368447401,1751181066660,-1256.76,0.00028551,3]
[368447402,1751181066669,-490.0,0.00028551,3]
[368447403,1751181066679,-490.0,0.00028551,3]
[368447404,1751181066688,-490.0,0.00028551,3]
[368447405,1751181066699,-1430.48,0.00028551,3]
[368447406,1751181066709,-7371.36,0.00028551,3]
[368447407,1751181066721,-490.0,0.00028551,3]
[368447408,1751181066732,-490.0,0.00028551,3]
[368447409,1751181066742,-3913.37,0.00028551,3]
[368447410,1751181066752,-490.0,0.00028551,3]
[368447411,1751181066762,-490.0,0.00028551,3]
[368447412,1751181066772,-1295.18,0.00028551,3]
[368447413,1751181066783,-490.0,0.00028551,3]
[368447414,1751181066793,-490.0,0.00028551,3]
[368447415,1751181066803,-628.45,0.00028551,3]
[368447416,1751181066814,-604.51,0.00028551,3]
[368447417,1751181066824,-1438.03,0.00028551,3]
[368447418,1751181066834,-490.0,0.00028551,3]
[368447419,1751181066844,-753.59,0.00028551,3]
[368447420,1751181066854,-2631.78,0.00028551,3]
[368447421,1751181066864,-490.0,0.00028551,3]
[368447422,1751181066874,-490.0,0.00028561,3]
[368447423,1751181067164,-490.0,0.00028561,3]
[368447424,1751181067175,-490.0,0.00028561,3]
[368447425,1751181067185,-490.0,0.00028561,3]
[368447426,1751181067195,-490.0,0.00028561,3]
[368447427,1751181067204,-627.86,0.00028561,3]
[368447428,1751181067214,-601.7,0.00028561,3]
[368447429,1751181067224,-490.0,0.00028561,3]
[368447430,1751181067234,-490.0,0.00028561,3]
[368447431,1751181067243,-490.0,0.00028561,3]
[368447432,1751181067254,-490.0,0.00028561,3]
[368447433,1751181067264,-601.34,0.00028561,3]
[368447434,1751181067273,-584.62,0.00028561,3]
[368447435,1751181067283,-560.27,0.00028561,3]
[368447436,1751181067293,-505.41,0.00028561,3]
[368447437,1751181067303,-505.41,0.00028561,3]
[368447438,1751181067314,-963.23,0.00028561,3]
[368447439,1751181067324,-610.53,0.00028561,3]
[368447440,1751181067334,-490.0,0.00028561,3]
[368447441,1751181067343,-490.0,0.00028561,3]
[368447442,1751181067353,-490.0,0.00028561,3]
[368447443,1751181067363,-490.0,0.00028561,3]
[368447444,1751181067373,-490.0,0.00028561,3]
[368447445,1751181067383,-490.0,0.00028561,3]
[368447446,1751181067393,-490.0,0.00028561,3]
[368447447,1751181067403,-490.0,0.00028561,3]
[368447448,1751181067412,-631.25,0.00028561,3]
[368447449,1751181067422,-490.0,0.00028561,3]
[368447450,1751181067432,-490.0,0.00028561,3]
[368447451,1751181067441,-521.25,0.00028561,3]
[368447452,1751181067451,-1247.94,0.00028561,3]
[368447453,1751181067460,-774.03,0.00028561,3]
[368447454,1751181067470,-579.21,0.00028561,3]
[368447455,1751181067479,-1844.3,0.00028561,3]
[368447456,1751181067489,-490.0,0.00028561,3]
[368447457,1751181067498,-1098.84,0.00028561,3]
[368447458,1751181067508,-703.38,0.00028561,3]
[368447459,1751181067517,-490.0,0.00028561,3]
[368447460,1751181067527,-1619.05,0.00028561,3]
[368447461,1751181067536,-704.09,0.00028561,3]
[368447462,1751181067546,-576.17,0.00028561,3]
[368447463,1751181067555,-490.0,0.00028561,3]
[368447464,1751181067565,-1282.13,0.00028561,3]
[368447465,1751181067575,-587.94,0.00028561,3]
[368447466,1751181067584,-1856.98,0.00028561,3]
[368447467,1751181067594,-490.0,0.00028561,3]
[368447468,1751181067604,-490.0,0.00028561,3]
[368447469,1751181067614,-752.61,0.00028561,3]
[368447470,1751181067623,-1324.25,0.00028561,3]
[368447471,1751181067633,-1433.73,0.00028561,3]
[368447472,1751181067643,-490.0,0.00028561,3]
[368447473,1751181067653,-923.41,0.00028561,3]
[368447474,1751181067663,-490.0,0.00028561,3]
[368447475,1751181067673,-490.0,0.00028561,3]
[368447476,1751181067682,-490.0,0.00028561,3]
[368447477,1751181067692,-1834.32,0.00028561,3]
[368447478,1751181067701,-490.0,0.00028561,3]
[368447479,1751181067711,-490.0,0.00028561,3]
[368447480,1751181067720,-956.25,0.00028561,3]
[368447481,1751181067730,-587.8,0.00028561,3]
[368447482,1751181067740,-1249.23,0.00028561,3]
[368447483,1751181067749,-490.0,0.00028561,3]
[368447484,1751181067759,-1080.93,0.00028561,3]
[368447485,1751181067768,-490.0,0.00028561,3]
[368447486,1751181067778,-490.0,0.00028561,3]
[368447487,1751181067787,-3056.96,0.00028561,3]
[368447488,1751181067797,-373.26542298,0.00028561,3]
[368447489,1751181067806,-1169.42,0.00028561,3]
[368447490,1751181067817,-490.0,0.00028561,3]
[368447491,1751181067826,-490.0,0.00028561,3]
[368447492,1751181067836,-490.0,0.00028561,3]
[368447493,1751181067846,-520.25,0.00028561,3]
[368447494,1751181067856,-490.0,0.00028561,3]
[368447495,1751181067866,-490.0,0.00028561,3]
[368447496,1751181067876,-800.46,0.00028561,3]
[368447497,1751181067887,-628.89,0.00028561,3]
[368447498,1751181067897,-2325.47,0.00028561,3]
[368447499,1751181067907,-490.0,0.00028561,3]
[368447500,1751181067917,-490.0,0.00028561,3]
[368447501,1751181067927,-1450.83,0.00028561,3]
[368447502,1751181067936,-490.0,0.00028561,3]
[368447503,1751181067946,-1281.9,0.00028561,3]
[368447504,1751181067956,-653.02,0.00028561,3]
[368447505,1751181067966,-490.0,0.00028561,3]
[368447506,1751181067976,-1252.8,0.00028561,3]
[368447507,1751181067986,-1772.8,0.00028561,3]
[368447508,1751181067996,-490.0,0.00028561,3]
[368447509,1751181068006,-490.0,0.00028561,3]
[368447510,1751181068015,-490.0,0.00028561,3]
[368447511,1751181068025,-602.3,0.00028561,3]
[368447512,1751181068035,-1242.32,0.00028561,3]
[368447513,1751181068044,-962.95,0.00028561,3]
[368447514,1751181068054,-884.17,0.00028561,3]
[368447515,1751181068064,-490.0,0.00028561,3]
[368447516,1751181068074,-515.45,0.00028561,3]
[368447517,1751181068084,-1214.61,0.00028561,3]
[368447518,1751181068094,-859.53,0.00028561,3]
[368447519,1751181068104,-490.0,0.00028561,3]
[368447520,1751181068114,-500.0,0.00028561,3]
[368447521,1751181068124,-606.52,0.00028561,3]
[368447522,1751181068133,-1246.58,0.00028561,3]
[368447523,1751181068142,-490.0,0.00028561,3]
[368447524,1751181068152,-2444.02,0.00028561,3]
[368447525,1751181068162,-780.95,0.00028561,3]
[368447526,1751181068171,-490.0,0.00028561,3]
[368447527,1751181068181,-490.0,0.00028561,3]
[368447528,1751181068191,-1641.24,0.00028561,3]
[368447529,1751181068200,-490.0,0.00028561,3]
[368447530,1751181068210,-762.48,0.00028561,3]
[368447531,1751181068221,-490.0,0.00028561,3]
[368447532,1751181068232,-490.0,0.00028561,3]